Workbook

Sheet Sales Analysis
B1: Product Sales Trend
B4: Select a state:
B6: =Data!K9 -> Product 1
B7: =Data!K10 -> Product 2
B8: =Data!K11 -> Product 3
B9: =Data!K12 -> Product 4
B10: =Data!K13 -> Product 5
B12: All

Sheet Expense Analysis
B1: Expenses Trend
B4: Select a state:
B6: =Data!K9 -> Product 1
B7: =Data!K10 -> Product 2
B8: =Data!K11 -> Product 3
B9: =Data!K12 -> Product 4
B10: =Data!K13 -> Product 5
B12: All

Sheet Data
B1: Data
B3: Raw data | K3: Calculations
B5: State | C5: Product | D5: Month | E5: Sales | F5: Expenses | I5: State | J5: Code | K5: Selected Region | M5: 1 | N5: =INDEX(states,M5) -> California
B6: Ohio | C6: Product 1 | D6: 2014-01-01 | E6: 2800 | F6: 2505 | I6: California | J6: CA
B7: Ohio | C7: Product 2 | D7: 2014-01-01 | E7: 3715 | F7: 2350 | I7: Florida | J7: FL | K7: Sales | L7: Month
B8: Ohio | C8: Product 3 | D8: 2014-01-01 | E8: 3490 | F8: 2685 | I8: Kentucky | J8: KY | K8: Product | L8: 2014-01-01 | M8: 2014-02-01 | N8: 2014-03-01 | O8: 2014-04-01 | P8: 2014-05-01 | Q8: 2014-06-01 | R8: 2014-07-01 | S8: 2014-08-01 | T8: 2014-09-01 | U8: 2014-10-01 | V8: 2014-11-01 | W8: 2014-12-01
B9: Ohio | C9: Product 4 | D9: 2014-01-01 | E9: 4000 | F9: 2060 | I9: New Jersey | J9: NJ | K9: Product 1 | L9: =SUMIFS(data[Sales],data[State],$N$5,data[Product],$K9,data[Month],L$8) -> 4260 | M9: =SUMIFS(data[Sales],data[State],$N$5,data[Product],$K9,data[Month],M$8) -> 4700 | N9: =SUMIFS(data[Sales],data[State],$N$5,data[Product],$K9,data[Month],N$8) -> 3670 | O9: =SUMIFS(data[Sales],data[State],$N$5,data[Product],$K9,data[Month],O$8) -> 3850 | P9: =SUMIFS(data[Sales],data[State],$N$5,data[Product],$K9,data[Month],P$8) -> 3130 | Q9: =SUMIFS(data[Sales],data[State],$N$5,data[Product],$K9,data[Month],Q$8) -> 4205 | R9: =SUMIFS(data[Sales],data[State],$N$5,data[Product],$K9,data[Month],R$8) -> 5205 | S9: =SUMIFS(data[Sales],data[State],$N$5,data[Product],$K9,data[Month],S$8) -> 3225 | T9: =SUMIFS(data[Sales],data[State],$N$5,data[Product],$K9,data[Month],T$8) -> 3115 | U9: =SUMIFS(data[Sales],data[State],$N$5,data[Product],$K9,data[Month],U$8) -> 3100 | V9: =SUMIFS(data[Sales],data[State],$N$5,data[Product],$K9,data[Month],V$8) -> 4235 | W9: =SUMIFS(data[Sales],data[State],$N$5,data[Product],$K9,data[Month],W$8) -> 5600
B10: Ohio | C10: Product 5 | D10: 2014-01-01 | E10: 4295 | F10: 2130 | I10: New York | J10: NY | K10: Product 2 | L10: =SUMIFS(data[Sales],data[State],$N$5,data[Product],$K10,data[Month],L$8) -> 2940 | M10: =SUMIFS(data[Sales],data[State],$N$5,data[Product],$K10,data[Month],M$8) -> 4020 | N10: =SUMIFS(data[Sales],data[State],$N$5,data[Product],$K10,data[Month],N$8) -> 3705 | O10: =SUMIFS(data[Sales],data[State],$N$5,data[Product],$K10,data[Month],O$8) -> 4380 | P10: =SUMIFS(data[Sales],data[State],$N$5,data[Product],$K10,data[Month],P$8) -> 3835 | Q10: =SUMIFS(data[Sales],data[State],$N$5,data[Product],$K10,data[Month],Q$8) -> 3950 | R10: =SUMIFS(data[Sales],data[State],$N$5,data[Product],$K10,data[Month],R$8) -> 4190 | S10: =SUMIFS(data[Sales],data[State],$N$5,data[Product],$K10,data[Month],S$8) -> 3995 | T10: =SUMIFS(data[Sales],data[State],$N$5,data[Product],$K10,data[Month],T$8) -> 3945 | U10: =SUMIFS(data[Sales],data[State],$N$5,data[Product],$K10,data[Month],U$8) -> 5135 | V10: =SUMIFS(data[Sales],data[State],$N$5,data[Product],$K10,data[Month],V$8) -> 4305 | W10: =SUMIFS(data[Sales],data[State],$N$5,data[Product],$K10,data[Month],W$8) -> 3930
B11: Ohio | C11: Product 1 | D11: 2014-02-01 | E11: 3590 | F11: 2575 | I11: Ohio | J11: OH | K11: Product 3 | L11: =SUMIFS(data[Sales],data[State],$N$5,data[Product],$K11,data[Month],L$8) -> 3360 | M11: =SUMIFS(data[Sales],data[State],$N$5,data[Product],$K11,data[Month],M$8) -> 4390 | N11: =SUMIFS(data[Sales],data[State],$N$5,data[Product],$K11,data[Month],N$8) -> 3480 | O11: =SUMIFS(data[Sales],data[State],$N$5,data[Product],$K11,data[Month],O$8) -> 4580 | P11: =SUMIFS(data[Sales],data[State],$N$5,data[Product],$K11,data[Month],P$8) -> 3815 | Q11: =SUMIFS(data[Sales],data[State],$N$5,data[Product],$K11,data[Month],Q$8) -> 3200 | R11: =SUMIFS(data[Sales],data[State],$N$5,data[Product],$K11,data[Month],R$8) -> 4320 | S11: =SUMIFS(data[Sales],data[State],$N$5,data[Product],$K11,data[Month],S$8) -> 2915 | T11: =SUMIFS(data[Sales],data[State],$N$5,data[Product],$K11,data[Month],T$8) -> 3665 | U11: =SUMIFS(data[Sales],data[State],$N$5,data[Product],$K11,data[Month],U$8) -> 3645 | V11: =SUMIFS(data[Sales],data[State],$N$5,data[Product],$K11,data[Month],V$8) -> 5310 | W11: =SUMIFS(data[Sales],data[State],$N$5,data[Product],$K11,data[Month],W$8) -> 3270
B12: Ohio | C12: Product 2 | D12: 2014-02-01 | E12: 3685 | F12: 2380 | I12: Oregon | J12: OR | K12: Product 4 | L12: =SUMIFS(data[Sales],data[State],$N$5,data[Product],$K12,data[Month],L$8) -> 4475 | M12: =SUMIFS(data[Sales],data[State],$N$5,data[Product],$K12,data[Month],M$8) -> 4940 | N12: =SUMIFS(data[Sales],data[State],$N$5,data[Product],$K12,data[Month],N$8) -> 3885 | O12: =SUMIFS(data[Sales],data[State],$N$5,data[Product],$K12,data[Month],O$8) -> 4445 | P12: =SUMIFS(data[Sales],data[State],$N$5,data[Product],$K12,data[Month],P$8) -> 5155 | Q12: =SUMIFS(data[Sales],data[State],$N$5,data[Product],$K12,data[Month],Q$8) -> 2520 | R12: =SUMIFS(data[Sales],data[State],$N$5,data[Product],$K12,data[Month],R$8) -> 3910 | S12: =SUMIFS(data[Sales],data[State],$N$5,data[Product],$K12,data[Month],S$8) -> 3530 | T12: =SUMIFS(data[Sales],data[State],$N$5,data[Product],$K12,data[Month],T$8) -> 4120 | U12: =SUMIFS(data[Sales],data[State],$N$5,data[Product],$K12,data[Month],U$8) -> 4015 | V12: =SUMIFS(data[Sales],data[State],$N$5,data[Product],$K12,data[Month],V$8) -> 3965 | W12: =SUMIFS(data[Sales],data[State],$N$5,data[Product],$K12,data[Month],W$8) -> 3165
B13: Ohio | C13: Product 3 | D13: 2014-02-01 | E13: 3525 | F13: 2205 | I13: South Carolina | J13: SC | K13: Product 5 | L13: =SUMIFS(data[Sales],data[State],$N$5,data[Product],$K13,data[Month],L$8) -> 3185 | M13: =SUMIFS(data[Sales],data[State],$N$5,data[Product],$K13,data[Month],M$8) -> 4095 | N13: =SUMIFS(data[Sales],data[State],$N$5,data[Product],$K13,data[Month],N$8) -> 4285 | O13: =SUMIFS(data[Sales],data[State],$N$5,data[Product],$K13,data[Month],O$8) -> 3895 | P13: =SUMIFS(data[Sales],data[State],$N$5,data[Product],$K13,data[Month],P$8) -> 4620 | Q13: =SUMIFS(data[Sales],data[State],$N$5,data[Product],$K13,data[Month],Q$8) -> 3645 | R13: =SUMIFS(data[Sales],data[State],$N$5,data[Product],$K13,data[Month],R$8) -> 3760 | S13: =SUMIFS(data[Sales],data[State],$N$5,data[Product],$K13,data[Month],S$8) -> 4425 | T13: =SUMIFS(data[Sales],data[State],$N$5,data[Product],$K13,data[Month],T$8) -> 4075 | U13: =SUMIFS(data[Sales],data[State],$N$5,data[Product],$K13,data[Month],U$8) -> 4765 | V13: =SUMIFS(data[Sales],data[State],$N$5,data[Product],$K13,data[Month],V$8) -> 3895 | W13: =SUMIFS(data[Sales],data[State],$N$5,data[Product],$K13,data[Month],W$8) -> 3190
B14: Ohio | C14: Product 4 | D14: 2014-02-01 | E14: 3675 | F14: 2470 | I14: Texas | J14: TX | K14: ALL | L14: =SUM(L9:L13) -> 18220 | M14: =SUM(M9:M13) -> 22145 | N14: 19025 | O14: 21150 | P14: 20555 | Q14: 17520 | R14: 21385 | S14: 18090 | T14: 18920 | U14: 20660 | V14: 21710 | W14: 19155
B15: Ohio | C15: Product 5 | D15: 2014-02-01 | E15: 4105 | F15: 2840 | I15: Washington | J15: WA
B16: Ohio | C16: Product 1 | D16: 2014-03-01 | E16: 4360 | F16: 2870 | K16: Expenses | L16: Month
B17: Ohio | C17: Product 2 | D17: 2014-03-01 | E17: 3235 | F17: 1685 | K17: Product | L17: 2014-01-01 | M17: 2014-02-01 | N17: 2014-03-01 | O17: 2014-04-01 | P17: 2014-05-01 | Q17: 2014-06-01 | R17: 2014-07-01 | S17: 2014-08-01 | T17: 2014-09-01 | U17: 2014-10-01 | V17: 2014-11-01 | W17: 2014-12-01
B18: Ohio | C18: Product 3 | D18: 2014-03-01 | E18: 4365 | F18: 3115 | K18: Product 1 | L18: =SUMIFS(data[Expenses],data[State],$N$5,data[Product],$K18,data[Month],L$8) -> 2150 | M18: =SUMIFS(data[Expenses],data[State],$N$5,data[Product],$K18,data[Month],M$8) -> 2405 | N18: =SUMIFS(data[Expenses],data[State],$N$5,data[Product],$K18,data[Month],N$8) -> 2175 | O18: =SUMIFS(data[Expenses],data[State],$N$5,data[Product],$K18,data[Month],O$8) -> 2145 | P18: =SUMIFS(data[Expenses],data[State],$N$5,data[Product],$K18,data[Month],P$8) -> 1730 | Q18: =SUMIFS(data[Expenses],data[State],$N$5,data[Product],$K18,data[Month],Q$8) -> 2030 | R18: =SUMIFS(data[Expenses],data[State],$N$5,data[Product],$K18,data[Month],R$8) -> 2795 | S18: =SUMIFS(data[Expenses],data[State],$N$5,data[Product],$K18,data[Month],S$8) -> 2700 | T18: =SUMIFS(data[Expenses],data[State],$N$5,data[Product],$K18,data[Month],T$8) -> 2255 | U18: =SUMIFS(data[Expenses],data[State],$N$5,data[Product],$K18,data[Month],U$8) -> 2755 | V18: =SUMIFS(data[Expenses],data[State],$N$5,data[Product],$K18,data[Month],V$8) -> 2680 | W18: =SUMIFS(data[Expenses],data[State],$N$5,data[Product],$K18,data[Month],W$8) -> 2660
B19: Ohio | C19: Product 4 | D19: 2014-03-01 | E19: 4670 | F19: 2815 | K19: Product 2 | L19: =SUMIFS(data[Expenses],data[State],$N$5,data[Product],$K19,data[Month],L$8) -> 2655 | M19: =SUMIFS(data[Expenses],data[State],$N$5,data[Product],$K19,data[Month],M$8) -> 2080 | N19: =SUMIFS(data[Expenses],data[State],$N$5,data[Product],$K19,data[Month],N$8) -> 2925 | O19: =SUMIFS(data[Expenses],data[State],$N$5,data[Product],$K19,data[Month],O$8) -> 1610 | P19: =SUMIFS(data[Expenses],data[State],$N$5,data[Product],$K19,data[Month],P$8) -> 2965 | Q19: =SUMIFS(data[Expenses],data[State],$N$5,data[Product],$K19,data[Month],Q$8) -> 2365 | R19: =SUMIFS(data[Expenses],data[State],$N$5,data[Product],$K19,data[Month],R$8) -> 2265 | S19: =SUMIFS(data[Expenses],data[State],$N$5,data[Product],$K19,data[Month],S$8) -> 2670 | T19: =SUMIFS(data[Expenses],data[State],$N$5,data[Product],$K19,data[Month],T$8) -> 2400 | U19: =SUMIFS(data[Expenses],data[State],$N$5,data[Product],$K19,data[Month],U$8) -> 2655 | V19: =SUMIFS(data[Expenses],data[State],$N$5,data[Product],$K19,data[Month],V$8) -> 2875 | W19: =SUMIFS(data[Expenses],data[State],$N$5,data[Product],$K19,data[Month],W$8) -> 2545
B20: Ohio | C20: Product 5 | D20: 2014-03-01 | E20: 3680 | F20: 2515 | K20: Product 3 | L20: =SUMIFS(data[Expenses],data[State],$N$5,data[Product],$K20,data[Month],L$8) -> 2680 | M20: =SUMIFS(data[Expenses],data[State],$N$5,data[Product],$K20,data[Month],M$8) -> 3295 | N20: =SUMIFS(data[Expenses],data[State],$N$5,data[Product],$K20,data[Month],N$8) -> 2590 | O20: =SUMIFS(data[Expenses],data[State],$N$5,data[Product],$K20,data[Month],O$8) -> 2705 | P20: =SUMIFS(data[Expenses],data[State],$N$5,data[Product],$K20,data[Month],P$8) -> 3070 | Q20: =SUMIFS(data[Expenses],data[State],$N$5,data[Product],$K20,data[Month],Q$8) -> 2615 | R20: =SUMIFS(data[Expenses],data[State],$N$5,data[Product],$K20,data[Month],R$8) -> 1240 | S20: =SUMIFS(data[Expenses],data[State],$N$5,data[Product],$K20,data[Month],S$8) -> 2055 | T20: =SUMIFS(data[Expenses],data[State],$N$5,data[Product],$K20,data[Month],T$8) -> 2695 | U20: =SUMIFS(data[Expenses],data[State],$N$5,data[Product],$K20,data[Month],U$8) -> 2745 | V20: =SUMIFS(data[Expenses],data[State],$N$5,data[Product],$K20,data[Month],V$8) -> 2560 | W20: =SUMIFS(data[Expenses],data[State],$N$5,data[Product],$K20,data[Month],W$8) -> 2570
B21: Ohio | C21: Product 1 | D21: 2014-04-01 | E21: 3795 | F21: 1945 | K21: Product 4 | L21: =SUMIFS(data[Expenses],data[State],$N$5,data[Product],$K21,data[Month],L$8) -> 2270 | M21: =SUMIFS(data[Expenses],data[State],$N$5,data[Product],$K21,data[Month],M$8) -> 2795 | N21: =SUMIFS(data[Expenses],data[State],$N$5,data[Product],$K21,data[Month],N$8) -> 2885 | O21: =SUMIFS(data[Expenses],data[State],$N$5,data[Product],$K21,data[Month],O$8) -> 2755 | P21: =SUMIFS(data[Expenses],data[State],$N$5,data[Product],$K21,data[Month],P$8) -> 2550 | Q21: =SUMIFS(data[Expenses],data[State],$N$5,data[Product],$K21,data[Month],Q$8) -> 1865 | R21: =SUMIFS(data[Expenses],data[State],$N$5,data[Product],$K21,data[Month],R$8) -> 2060 | S21: =SUMIFS(data[Expenses],data[State],$N$5,data[Product],$K21,data[Month],S$8) -> 1890 | T21: =SUMIFS(data[Expenses],data[State],$N$5,data[Product],$K21,data[Month],T$8) -> 2565 | U21: =SUMIFS(data[Expenses],data[State],$N$5,data[Product],$K21,data[Month],U$8) -> 2750 | V21: =SUMIFS(data[Expenses],data[State],$N$5,data[Product],$K21,data[Month],V$8) -> 1845 | W21: =SUMIFS(data[Expenses],data[State],$N$5,data[Product],$K21,data[Month],W$8) -> 2045
B22: Ohio | C22: Product 2 | D22: 2014-04-01 | E22: 4165 | F22: 3705 | K22: Product 5 | L22: =SUMIFS(data[Expenses],data[State],$N$5,data[Product],$K22,data[Month],L$8) -> 1960 | M22: =SUMIFS(data[Expenses],data[State],$N$5,data[Product],$K22,data[Month],M$8) -> 2640 | N22: =SUMIFS(data[Expenses],data[State],$N$5,data[Product],$K22,data[Month],N$8) -> 1995 | O22: =SUMIFS(data[Expenses],data[State],$N$5,data[Product],$K22,data[Month],O$8) -> 2880 | P22: =SUMIFS(data[Expenses],data[State],$N$5,data[Product],$K22,data[Month],P$8) -> 2305 | Q22: =SUMIFS(data[Expenses],data[State],$N$5,data[Product],$K22,data[Month],Q$8) -> 2465 | R22: =SUMIFS(data[Expenses],data[State],$N$5,data[Product],$K22,data[Month],R$8) -> 2755 | S22: =SUMIFS(data[Expenses],data[State],$N$5,data[Product],$K22,data[Month],S$8) -> 2910 | T22: =SUMIFS(data[Expenses],data[State],$N$5,data[Product],$K22,data[Month],T$8) -> 2800 | U22: =SUMIFS(data[Expenses],data[State],$N$5,data[Product],$K22,data[Month],U$8) -> 2210 | V22: =SUMIFS(data[Expenses],data[State],$N$5,data[Product],$K22,data[Month],V$8) -> 2030 | W22: =SUMIFS(data[Expenses],data[State],$N$5,data[Product],$K22,data[Month],W$8) -> 1330
B23: Ohio | C23: Product 3 | D23: 2014-04-01 | E23: 4130 | F23: 1520 | K23: ALL | L23: =SUM(L18:L22) -> 11715 | M23: =SUM(M18:M22) -> 13215 | N23: =SUM(N18:N22) -> 12570 | O23: =SUM(O18:O22) -> 12095 | P23: =SUM(P18:P22) -> 12620 | Q23: =SUM(Q18:Q22) -> 11340 | R23: =SUM(R18:R22) -> 11115 | S23: =SUM(S18:S22) -> 12225 | T23: =SUM(T18:T22) -> 12715 | U23: =SUM(U18:U22) -> 13115 | V23: =SUM(V18:V22) -> 11990 | W23: =SUM(W18:W22) -> 11150
B24: Ohio | C24: Product 4 | D24: 2014-04-01 | E24: 3540 | F24: 2790
B25: Ohio | C25: Product 5 | D25: 2014-04-01 | E25: 3585 | F25: 2720
B26: Ohio | C26: Product 1 | D26: 2014-05-01 | E26: 3365 | F26: 2730
B27: Ohio | C27: Product 2 | D27: 2014-05-01 | E27: 4105 | F27: 2240
B28: Ohio | C28: Product 3 | D28: 2014-05-01 | E28: 5035 | F28: 1390
B29: Ohio | C29: Product 4 | D29: 2014-05-01 | E29: 2835 | F29: 2430
B30: Ohio | C30: Product 5 | D30: 2014-05-01 | E30: 4025 | F30: 2290
B31: Ohio | C31: Product 1 | D31: 2014-06-01 | E31: 3660 | F31: 2540
B32: Ohio | C32: Product 2 | D32: 2014-06-01 | E32: 4470 | F32: 2450
B33: Ohio | C33: Product 3 | D33: 2014-06-01 | E33: 3895 | F33: 1210
B34: Ohio | C34: Product 4 | D34: 2014-06-01 | E34: 4230 | F34: 2805
B35: Ohio | C35: Product 5 | D35: 2014-06-01 | E35: 3265 | F35: 3095
B36: Ohio | C36: Product 1 | D36: 2014-07-01 | E36: 3610 | F36: 2365
B37: Ohio | C37: Product 2 | D37: 2014-07-01 | E37: 2895 | F37: 3070
B38: Ohio | C38: Product 3 | D38: 2014-07-01 | E38: 4885 | F38: 2450
B39: Ohio | C39: Product 4 | D39: 2014-07-01 | E39: 3955 | F39: 3150
B40: Ohio | C40: Product 5 | D40: 2014-07-01 | E40: 3910 | F40: 3090
B41: Ohio | C41: Product 1 | D41: 2014-08-01 | E41: 3860 | F41: 1815
B42: Ohio | C42: Product 2 | D42: 2014-08-01 | E42: 4900 | F42: 2380
B43: Ohio | C43: Product 3 | D43: 2014-08-01 | E43: 4095 | F43: 2215
B44: Ohio | C44: Product 4 | D44: 2014-08-01 | E44: 3355 | F44: 2540
B45: Ohio | C45: Product 5 | D45: 2014-08-01 | E45: 3580 | F45: 2270
B46: Ohio | C46: Product 1 | D46: 2014-09-01 | E46: 4080 | F46: 2860
B47: Ohio | C47: Product 2 | D47: 2014-09-01 | E47: 2900 | F47: 2405
B48: Ohio | C48: Product 3 | D48: 2014-09-01 | E48: 4615 | F48: 2450
B49: Ohio | C49: Product 4 | D49: 2014-09-01 | E49: 3635 | F49: 2410
B50: Ohio | C50: Product 5 | D50: 2014-09-01 | E50: 3535 | F50: 2320
B51: Ohio | C51: Product 1 | D51: 2014-10-01 | E51: 2875 | F51: 2680
B52: Ohio | C52: Product 2 | D52: 2014-10-01 | E52: 4285 | F52: 2800
B53: Ohio | C53: Product 3 | D53: 2014-10-01 | E53: 3865 | F53: 2925
B54: Ohio | C54: Product 4 | D54: 2014-10-01 | E54: 3005 | F54: 2515
B55: Ohio | C55: Product 5 | D55: 2014-10-01 | E55: 4380 | F55: 3200
B56: Ohio | C56: Product 1 | D56: 2014-11-01 | E56: 3020 | F56: 2240
B57: Ohio | C57: Product 2 | D57: 2014-11-01 | E57: 2965 | F57: 1630
B58: Ohio | C58: Product 3 | D58: 2014-11-01 | E58: 3305 | F58: 2940
B59: Ohio | C59: Product 4 | D59: 2014-11-01 | E59: 4335 | F59: 2445
B60: Ohio | C60: Product 5 | D60: 2014-11-01 | E60: 3920 | F60: 2255
B61: Ohio | C61: Product 1 | D61: 2014-12-01 | E61: 2325 | F61: 1440
B62: Ohio | C62: Product 2 | D62: 2014-12-01 | E62: 3210 | F62: 2550
B63: Ohio | C63: Product 3 | D63: 2014-12-01 | E63: 3525 | F63: 1695
B64: Ohio | C64: Product 4 | D64: 2014-12-01 | E64: 3530 | F64: 2445
B65: Ohio | C65: Product 5 | D65: 2014-12-01 | E65: 2705 | F65: 2460
B66: New York | C66: Product 1 | D66: 2014-01-01 | E66: 4230 | F66: 2330
B67: New York | C67: Product 2 | D67: 2014-01-01 | E67: 4920 | F67: 2200
B68: New York | C68: Product 3 | D68: 2014-01-01 | E68: 3855 | F68: 1445
B69: New York | C69: Product 4 | D69: 2014-01-01 | E69: 3250 | F69: 1610
B70: New York | C70: Product 5 | D70: 2014-01-01 | E70: 4620 | F70: 2150
B71: New York | C71: Product 1 | D71: 2014-02-01 | E71: 4670 | F71: 3085
B72: New York | C72: Product 2 | D72: 2014-02-01 | E72: 4190 | F72: 2150
B73: New York | C73: Product 3 | D73: 2014-02-01 | E73: 4385 | F73: 3305
B74: New York | C74: Product 4 | D74: 2014-02-01 | E74: 4260 | F74: 2255
B75: New York | C75: Product 5 | D75: 2014-02-01 | E75: 3590 | F75: 2305
B76: New York | C76: Product 1 | D76: 2014-03-01 | E76: 2980 | F76: 2405
B77: New York | C77: Product 2 | D77: 2014-03-01 | E77: 3670 | F77: 2525
B78: New York | C78: Product 3 | D78: 2014-03-01 | E78: 4210 | F78: 2610
B79: New York | C79: Product 4 | D79: 2014-03-01 | E79: 3965 | F79: 2760
B80: New York | C80: Product 5 | D80: 2014-03-01 | E80: 4155 | F80: 2565
B81: New York | C81: Product 1 | D81: 2014-04-01 | E81: 2955 | F81: 2910
B82: New York | C82: Product 2 | D82: 2014-04-01 | E82: 4895 | F82: 1910
B83: New York | C83: Product 3 | D83: 2014-04-01 | E83: 5115 | F83: 2505
B84: New York | C84: Product 4 | D84: 2014-04-01 | E84: 2810 | F84: 2770
B85: New York | C85: Product 5 | D85: 2014-04-01 | E85: 5105 | F85: 1560
B86: New York | C86: Product 1 | D86: 2014-05-01 | E86: 2920 | F86: 2620
B87: New York | C87: Product 2 | D87: 2014-05-01 | E87: 3205 | F87: 3755
B88: New York | C88: Product 3 | D88: 2014-05-01 | E88: 3725 | F88: 1925
B89: New York | C89: Product 4 | D89: 2014-05-01 | E89: 4125 | F89: 3795
B90: New York | C90: Product 5 | D90: 2014-05-01 | E90: 2865 | F90: 2610
B91: New York | C91: Product 1 | D91: 2014-06-01 | E91: 3585 | F91: 2780
B92: New York | C92: Product 2 | D92: 2014-06-01 | E92: 4255 | F92: 2615
B93: New York | C93: Product 3 | D93: 2014-06-01 | E93: 4490 | F93: 2620
B94: New York | C94: Product 4 | D94: 2014-06-01 | E94: 4325 | F94: 2085
B95: New York | C95: Product 5 | D95: 2014-06-01 | E95: 3900 | F95: 2965
B96: New York | C96: Product 1 | D96: 2014-07-01 | E96: 4640 | F96: 1790
B97: New York | C97: Product 2 | D97: 2014-07-01 | E97: 4530 | F97: 2580
B98: New York | C98: Product 3 | D98: 2014-07-01 | E98: 3410 | F98: 2875
B99: New York | C99: Product 4 | D99: 2014-07-01 | E99: 3435 | F99: 3140
B100: New York | C100: Product 5 | D100: 2014-07-01 | E100: 3935 | F100: 3150
B101: New York | C101: Product 1 | D101: 2014-08-01 | E101: 3345 | F101: 2290
B102: New York | C102: Product 2 | D102: 2014-08-01 | E102: 3655 | F102: 2310
B103: New York | C103: Product 3 | D103: 2014-08-01 | E103: 4250 | F103: 2980
B104: New York | C104: Product 4 | D104: 2014-08-01 | E104: 3680 | F104: 2215
B105: New York | C105: Product 5 | D105: 2014-08-01 | E105: 4275 | F105: 2035
B106: New York | C106: Product 1 | D106: 2014-09-01 | E106: 3880 | F106: 3170
B107: New York | C107: Product 2 | D107: 2014-09-01 | E107: 4005 | F107: 2280
B108: New York | C108: Product 3 | D108: 2014-09-01 | E108: 3840 | F108: 1995
B109: New York | C109: Product 4 | D109: 2014-09-01 | E109: 2630 | F109: 2685
B110: New York | C110: Product 5 | D110: 2014-09-01 | E110: 4795 | F110: 2580
B111: New York | C111: Product 1 | D111: 2014-10-01 | E111: 4410 | F111: 2090
B112: New York | C112: Product 2 | D112: 2014-10-01 | E112: 3985 | F112: 2155
B113: New York | C113: Product 3 | D113: 2014-10-01 | E113: 4145 | F113: 2430
B114: New York | C114: Product 4 | D114: 2014-10-01 | E114: 4270 | F114: 2415
B115: New York | C115: Product 5 | D115: 2014-10-01 | E115: 2775 | F115: 1500
B116: New York | C116: Product 1 | D116: 2014-11-01 | E116: 4420 | F116: 1770
B117: New York | C117: Product 2 | D117: 2014-11-01 | E117: 3330 | F117: 2360
B118: New York | C118: Product 3 | D118: 2014-11-01 | E118: 4045 | F118: 3150
B119: New York | C119: Product 4 | D119: 2014-11-01 | E119: 3920 | F119: 3140
B120: New York | C120: Product 5 | D120: 2014-11-01 | E120: 3975 | F120: 2860
B121: New York | C121: Product 1 | D121: 2014-12-01 | E121: 3860 | F121: 2685
B122: New York | C122: Product 2 | D122: 2014-12-01 | E122: 4125 | F122: 2945
B123: New York | C123: Product 3 | D123: 2014-12-01 | E123: 3920 | F123: 2535
B124: New York | C124: Product 4 | D124: 2014-12-01 | E124: 3535 | F124: 2555
B125: New York | C125: Product 5 | D125: 2014-12-01 | E125: 2965 | F125: 2195
B126: New Jersey | C126: Product 1 | D126: 2014-01-01 | E126: 4675 | F126: 2525
B127: New Jersey | C127: Product 2 | D127: 2014-01-01 | E127: 4775 | F127: 2820
B128: New Jersey | C128: Product 3 | D128: 2014-01-01 | E128: 4155 | F128: 2245
B129: New Jersey | C129: Product 4 | D129: 2014-01-01 | E129: 4520 | F129: 3375
B130: New Jersey | C130: Product 5 | D130: 2014-01-01 | E130: 4235 | F130: 1655
B131: New Jersey | C131: Product 1 | D131: 2014-02-01 | E131: 4840 | F131: 2605
B132: New Jersey | C132: Product 2 | D132: 2014-02-01 | E132: 6060 | F132: 3500
B133: New Jersey | C133: Product 3 | D133: 2014-02-01 | E133: 3270 | F133: 2715
B134: New Jersey | C134: Product 4 | D134: 2014-02-01 | E134: 4760 | F134: 2140
B135: New Jersey | C135: Product 5 | D135: 2014-02-01 | E135: 3570 | F135: 2305
B136: New Jersey | C136: Product 1 | D136: 2014-03-01 | E136: 4055 | F136: 2970
B137: New Jersey | C137: Product 2 | D137: 2014-03-01 | E137: 4225 | F137: 3430
B138: New Jersey | C138: Product 3 | D138: 2014-03-01 | E138: 2125 | F138: 2390
B139: New Jersey | C139: Product 4 | D139: 2014-03-01 | E139: 4270 | F139: 2525
B140: New Jersey | C140: Product 5 | D140: 2014-03-01 | E140: 4355 | F140: 3545
B141: New Jersey | C141: Product 1 | D141: 2014-04-01 | E141: 4555 | F141: 2340
B142: New Jersey | C142: Product 2 | D142: 2014-04-01 | E142: 4440 | F142: 3000
B143: New Jersey | C143: Product 3 | D143: 2014-04-01 | E143: 4095 | F143: 3490
B144: New Jersey | C144: Product 4 | D144: 2014-04-01 | E144: 5180 | F144: 3010
B145: New Jersey | C145: Product 5 | D145: 2014-04-01 | E145: 2795 | F145: 2175
B146: New Jersey | C146: Product 1 | D146: 2014-05-01 | E146: 4085 | F146: 2350
B147: New Jersey | C147: Product 2 | D147: 2014-05-01 | E147: 3220 | F147: 2250
B148: New Jersey | C148: Product 3 | D148: 2014-05-01 | E148: 4355 | F148: 1820
B149: New Jersey | C149: Product 4 | D149: 2014-05-01 | E149: 4510 | F149: 2140
B150: New Jersey | C150: Product 5 | D150: 2014-05-01 | E150: 4500 | F150: 1660
B151: New Jersey | C151: Product 1 | D151: 2014-06-01 | E151: 4790 | F151: 1990
B152: New Jersey | C152: Product 2 | D152: 2014-06-01 | E152: 2900 | F152: 2485
B153: New Jersey | C153: Product 3 | D153: 2014-06-01 | E153: 3495 | F153: 2525
B154: New Jersey | C154: Product 4 | D154: 2014-06-01 | E154: 5125 | F154: 2485
B155: New Jersey | C155: Product 5 | D155: 2014-06-01 | E155: 2895 | F155: 1755
B156: New Jersey | C156: Product 1 | D156: 2014-07-01 | E156: 3250 | F156: 2725
B157: New Jersey | C157: Product 2 | D157: 2014-07-01 | E157: 3290 | F157: 3300
B158: New Jersey | C158: Product 3 | D158: 2014-07-01 | E158: 4110 | F158: 2160
B159: New Jersey | C159: Product 4 | D159: 2014-07-01 | E159: 3430 | F159: 2595
B160: New Jersey | C160: Product 5 | D160: 2014-07-01 | E160: 4245 | F160: 2255
B161: New Jersey | C161: Product 1 | D161: 2014-08-01 | E161: 4770 | F161: 2340
B162: New Jersey | C162: Product 2 | D162: 2014-08-01 | E162: 3135 | F162: 2245
B163: New Jersey | C163: Product 3 | D163: 2014-08-01 | E163: 4510 | F163: 1960
B164: New Jersey | C164: Product 4 | D164: 2014-08-01 | E164: 2950 | F164: 2520
B165: New Jersey | C165: Product 5 | D165: 2014-08-01 | E165: 4110 | F165: 2900
B166: New Jersey | C166: Product 1 | D166: 2014-09-01 | E166: 4360 | F166: 2235
B167: New Jersey | C167: Product 2 | D167: 2014-09-01 | E167: 3530 | F167: 2830
B168: New Jersey | C168: Product 3 | D168: 2014-09-01 | E168: 3615 | F168: 2965
B169: New Jersey | C169: Product 4 | D169: 2014-09-01 | E169: 3390 | F169: 2915
B170: New Jersey | C170: Product 5 | D170: 2014-09-01 | E170: 5345 | F170: 2165
B171: New Jersey | C171: Product 1 | D171: 2014-10-01 | E171: 4940 | F171: 2370
B172: New Jersey | C172: Product 2 | D172: 2014-10-01 | E172: 3990 | F172: 2735
B173: New Jersey | C173: Product 3 | D173: 2014-10-01 | E173: 4735 | F173: 2385
B174: New Jersey | C174: Product 4 | D174: 2014-10-01 | E174: 3420 | F174: 2120
B175: New Jersey | C175: Product 5 | D175: 2014-10-01 | E175: 3825 | F175: 1965
B176: New Jersey | C176: Product 1 | D176: 2014-11-01 | E176: 2855 | F176: 1995
B177: New Jersey | C177: Product 2 | D177: 2014-11-01 | E177: 4305 | F177: 2470
B178: New Jersey | C178: Product 3 | D178: 2014-11-01 | E178: 4105 | F178: 2645
B179: New Jersey | C179: Product 4 | D179: 2014-11-01 | E179: 3535 | F179: 2910
B180: New Jersey | C180: Product 5 | D180: 2014-11-01 | E180: 3775 | F180: 2700
B181: New Jersey | C181: Product 1 | D181: 2014-12-01 | E181: 5205 | F181: 2570
B182: New Jersey | C182: Product 2 | D182: 2014-12-01 | E182: 5215 | F182: 2145
B183: New Jersey | C183: Product 3 | D183: 2014-12-01 | E183: 4770 | F183: 3430
B184: New Jersey | C184: Product 4 | D184: 2014-12-01 | E184: 3165 | F184: 3225
B185: New Jersey | C185: Product 5 | D185: 2014-12-01 | E185: 3850 | F185: 2960
B186: Kentucky | C186: Product 1 | D186: 2014-01-01 | E186: 2735 | F186: 2325
B187: Kentucky | C187: Product 2 | D187: 2014-01-01 | E187: 4440 | F187: 2340
B188: Kentucky | C188: Product 3 | D188: 2014-01-01 | E188: 2985 | F188: 3285
B189: Kentucky | C189: Product 4 | D189: 2014-01-01 | E189: 4395 | F189: 2020
B190: Kentucky | C190: Product 5 | D190: 2014-01-01 | E190: 4360 | F190: 3650
B191: Kentucky | C191: Product 1 | D191: 2014-02-01 | E191: 3695 | F191: 2925
B192: Kentucky | C192: Product 2 | D192: 2014-02-01 | E192: 4930 | F192: 2400
B193: Kentucky | C193: Product 3 | D193: 2014-02-01 | E193: 4135 | F193: 3125
B194: Kentucky | C194: Product 4 | D194: 2014-02-01 | E194: 3500 | F194: 1805
B195: Kentucky | C195: Product 5 | D195: 2014-02-01 | E195: 4525 | F195: 2240
B196: Kentucky | C196: Product 1 | D196: 2014-03-01 | E196: 3225 | F196: 2720
B197: Kentucky | C197: Product 2 | D197: 2014-03-01 | E197: 2965 | F197: 2390
B198: Kentucky | C198: Product 3 | D198: 2014-03-01 | E198: 4540 | F198: 2390
B199: Kentucky | C199: Product 4 | D199: 2014-03-01 | E199: 3350 | F199: 2310
B200: Kentucky | C200: Product 5 | D200: 2014-03-01 | E200: 3220 | F200: 2815
B201: Kentucky | C201: Product 1 | D201: 2014-04-01 | E201: 4330 | F201: 2020
B202: Kentucky | C202: Product 2 | D202: 2014-04-01 | E202: 3535 | F202: 2630
... 403 more rows
